fUST/lending_fUST_20241108
["ID","MTS","AMOUNT","RATE_DAILY","PERIOD"]
[341639343,1731053450207,-203.398043,0.00022465,7]
[341639344,1731053450217,-203.398043,0.00022465,7]
[341639345,1731053450226,-500.0,0.00022465,2]
[341639346,1731053450235,-500.0,0.00022465,2]
[341639347,1731053450244,-500.0,0.00022465,2]
[341639348,1731053450253,-531.92,0.00022465,2]
[341639349,1731053450263,-500.0,0.00022465,2]
[341639350,1731053450272,-500.0,0.00022465,2]
[341639351,1731053450356,-500.0,0.00022465,2]
[341639352,1731053450366,-3357.79,0.00022465,2]
[341639353,1731053450376,-327.690446,0.00022567,7]
[341639354,1731053450386,-331.649749,0.00022567,7]
[341639355,1731053450396,-327.690446,0.00022567,7]
[341639356,1731053450405,-331.649749,0.00022567,7]
[341639357,1731053450414,-179.93202,0.00022567,7]
[341639358,1731053450424,-179.93202,0.00022567,7]
[341639359,1731053450433,-1000.0,0.0002268,2]
[341639360,1731053450443,-151.0,0.00022739,7]
[341639361,1731053450452,-500.0,0.00022739,2]
[341639362,1731053450461,-500.0,0.00022739,2]
[341639363,1731053450470,-500.0,0.00022739,2]
[341639364,1731053450480,-500.0,0.00022739,2]
[341639365,1731053450490,-466.217942,0.00022739,7]
[341639366,1731053450501,-466.217942,0.00022739,7]
[341639367,1731053450510,-314.47574854,0.00022739,2]
[341639368,1731053450519,-466.21793343,0.00022739,7]
[341639369,1731053450528,-500.0,0.00022739,2]
[341639370,1731053450538,-500.0,0.00022739,2]
[341639371,1731053450548,-500.0,0.00022739,2]
[341639372,1731053450557,-500.0,0.00022739,2]
[341639373,1731053450566,-500.0,0.00022739,2]
[341639374,1731053450575,-500.0,0.00022739,2]
[341639375,1731053450585,-151.0,0.00022739,7]
[341639376,1731053450594,-151.0,0.00022739,7]
[341639377,1731053450603,-151.0,0.00022739,7]
[341639378,1731053450614,-701.41,0.00022739,2]
[341639379,1731053450623,-500.0,0.00022739,2]
[341639380,1731053450633,-151.0,0.00022739,7]
[341639381,1731053450641,-500.0,0.00022739,2]
[341639382,1731053450651,-500.0,0.00022739,2]
[341639383,1731053450660,-151.0,0.00022739,7]
[341639384,1731053450669,-151.0,0.00022739,7]
[341639385,1731053450679,-151.0,0.00022739,7]
[341639386,1731053450688,-1564.08,0.00022739,2]
[341639387,1731053450698,-552.92,0.00022739,2]
[341639388,1731053450707,-151.0,0.00022739,7]
[341639389,1731053450717,-151.0,0.00022739,7]
[341639390,1731053450726,-500.0,0.00022739,2]
[341639391,1731053450735,-151.0,0.00022739,7]
[341639392,1731053450745,-500.0,0.00022739,2]
[341639393,1731053450754,-613.7,0.00022739,2]
[341639394,1731053450763,-500.0,0.00022739,2]
[341639395,1731053450772,-783.37,0.00022739,2]
[341639396,1731053450781,-1473.68,0.00022739,2]
[341639397,1731053450790,-500.0,0.00022739,2]
[341639398,1731053450800,-500.0,0.00022739,2]
[341639399,1731053450809,-485.91707152,0.00022739,2]
[341639400,1731053450818,-500.0,0.00022739,2]
[341639401,1731053450828,-500.0,0.00022739,2]
[341639402,1731053450837,-500.0,0.00022739,2]
[341639403,1731053450847,-207.60230145,0.00022739,2]
[341639404,1731053450856,-500.0,0.00022739,2]
[341639405,1731053450866,-500.0,0.00022739,2]
[341639406,1731053450875,-231.285017,0.00022739,7]
[341639407,1731053450885,-231.285017,0.00022739,7]
[341639408,1731053450894,-231.285019,0.00022739,7]
[341639409,1731053450904,-714.86,0.00022739,2]
[341639410,1731053450912,-500.0,0.00022739,2]
[341639411,1731053450922,-541.66879555,0.00022739,2]
[341639412,1731053450931,-500.0,0.00022739,2]
[341639413,1731053450940,-500.0,0.00022739,2]
[341639414,1731053450949,-376.920108,0.00022739,7]
[341639415,1731053450959,-500.0,0.00022739,2]
[341639416,1731053450967,-376.920108,0.00022739,7]
[341639417,1731053450977,-500.0,0.00022739,2]
[341639418,1731053450986,-500.0,0.00022739,2]
[341639419,1731053450995,-376.920108,0.00022739,7]
[341639420,1731053451004,-376.920103,0.00022739,7]
[341639421,1731053451014,-450.251267,0.00022739,7]
[341639422,1731053451023,-450.251267,0.00022739,7]
[341639423,1731053451032,-372.667036,0.00022739,7]
[341639424,1731053451042,-450.251267,0.00022739,7]
[341639425,1731053451051,-372.667036,0.00022739,7]
[341639426,1731053451060,-372.667036,0.00022739,7]
[341639427,1731053451070,-372.667036,0.00022739,7]
[341639428,1731053451079,-450.251267,0.00022739,7]
[341639429,1731053451088,-372.667036,0.00022739,7]
[341639430,1731053451097,-372.667029,0.00022739,7]
[341639431,1731053451109,-450.251267,0.00022739,7]
[341639432,1731053451118,-500.0,0.00022739,2]
[341639433,1731053451127,-450.251276,0.00022739,7]
[341639434,1731053451136,-500.0,0.00022739,2]
[341639435,1731053451145,-500.0,0.00022739,2]
[341639436,1731053451154,-500.0,0.00022739,2]
[341639437,1731053451163,-1329.89,0.00022739,2]
[341639438,1731053451172,-438.98538127,0.00022739,2]
[341639439,1731053451182,-500.0,0.00022739,2]
[341639440,1731053451191,-500.0,0.00022739,2]
[341639441,1731053451200,-573.06,0.00022739,2]
[341639442,1731053451209,-500.0,0.00022739,2]
[341639443,1731053451218,-260.94158996,0.00022739,2]
[341639444,1731053451228,-276.217914,0.00022739,7]
[341639445,1731053451237,-276.217914,0.00022739,7]
[341639446,1731053451246,-276.217914,0.00022739,7]
[341639447,1731053451256,-500.0,0.00022739,2]
[341639448,1731053451265,-276.217914,0.00022739,7]
[341639449,1731053451274,-276.217914,0.00022739,7]
[341639450,1731053451283,-276.217917,0.00022739,7]
[341639451,1731053451293,-500.0,0.00022739,2]
[341639452,1731053451302,-198.061044,0.00022739,7]
[341639453,1731053451312,-198.061044,0.00022739,7]
[341639454,1731053451320,-198.061044,0.00022739,7]
[341639455,1731053451330,-198.061044,0.00022739,7]
[341639456,1731053451339,-198.061044,0.00022739,7]
[341639457,1731053451349,-1260.361495,0.00022739,7]
[341639458,1731053451362,-198.061046,0.00022739,7]
[341639459,1731053451372,-1260.361495,0.00022739,7]
[341639460,1731053451381,-1260.361495,0.00022739,7]
[341639461,1731053451390,-500.0,0.00022739,2]
[341639462,1731053451399,-1260.361495,0.00022739,7]
[341639463,1731053451408,-1260.361495,0.00022739,7]
[341639464,1731053451417,-1260.361495,0.00022739,7]
[341639465,1731053451426,-5573.15,0.00022739,2]
[341639466,1731053451435,-1066.59,0.00022739,2]
[341639467,1731053451445,-211.90631764,0.00022739,2]
[341639468,1731053451455,-500.0,0.00022739,2]
[341639469,1731053451463,-500.0,0.00022739,2]
[341639470,1731053451472,-500.0,0.00022739,2]
[341639471,1731053451481,-500.0,0.00022739,2]
[341639472,1731053451492,-571.59,0.00022739,2]
[341639473,1731053451502,-500.0,0.00022739,2]
[341639474,1731053451511,-500.0,0.00022739,2]
[341639475,1731053451520,-327.690446,0.00022739,7]
[341639476,1731053451529,-327.690446,0.00022739,7]
[341639477,1731053451539,-331.649749,0.00022739,7]
[341639478,1731053451548,-9530.94,0.00022739,2]
[341639479,1731053451557,-331.649749,0.00022739,7]
[341639480,1731053451566,-500.0,0.00022739,2]
[341639481,1731053451575,-317.1296968,0.00022739,2]
[341639482,1731053451583,-327.690446,0.00022739,7]
[341639483,1731053451592,-327.690442,0.00022739,7]
[341639484,1731053451601,-331.649749,0.00022739,7]
[341639485,1731053451613,-331.649755,0.00022739,7]
[341639486,1731053451622,-500.0,0.00022739,2]
[341639487,1731053451631,-500.0,0.00022739,2]
[341639488,1731053451640,-500.0,0.00022739,2]
[341639489,1731053451650,-179.93202,0.00022739,7]
[341639490,1731053451659,-179.93202,0.00022739,7]
[341639491,1731053451668,-179.93202,0.00022739,7]
[341639492,1731053451677,-179.932024,0.00022739,7]
[341639493,1731053451686,-1022.2,0.00022739,2]
[341639494,1731053451695,-500.0,0.00022739,2]
[341639495,1731053451704,-1090.45,0.00022739,2]
[341639496,1731053451714,-342.30863459,0.00022739,2]
[341639497,1731053451723,-500.0,0.00022739,2]
[341639498,1731053451734,-500.0,0.00022739,2]
[341639499,1731053451744,-604.25501442,0.00022739,2]
[341639500,1731053451753,-500.0,0.00022739,2]
[341639501,1731053451762,-378.1070657,0.00022739,2]
[341639502,1731053451771,-617.53453115,0.00022739,2]
[341639503,1731053451780,-500.0,0.00022739,2]
[341639504,1731053451789,-500.0,0.00022739,2]
[341639505,1731053451798,-500.0,0.00022739,2]
[341639506,1731053451807,-500.0,0.00022739,2]
[341639507,1731053451816,-500.0,0.00022739,2]
[341639508,1731053451825,-274.097758,0.00022739,7]
[341639509,1731053451834,-274.097758,0.00022739,7]
[341639510,1731053451844,-774.43,0.00022739,2]
[341639511,1731053451852,-274.097758,0.00022739,7]
[341639512,1731053451862,-274.09776,0.00022739,7]
[341639513,1731053451871,-500.0,0.00022739,2]
[341639514,1731053451881,-500.0,0.00022739,2]
[341639515,1731053451890,-500.0,0.00022739,2]
[341639516,1731053451899,-500.0,0.00022739,2]
[341639517,1731053451908,-714.27,0.00022739,2]
[341639518,1731053451917,-500.0,0.00022739,2]
[341639519,1731053451926,-500.0,0.00022739,2]
[341639520,1731053451934,-151.0,0.00022739,7]
[341639521,1731053452011,-500.0,0.00022739,2]
[341639522,1731053452021,-500.0,0.00022739,2]
[341639523,1731053452030,-500.0,0.00022739,2]
[341639524,1731053452040,-348.29119973,0.00022739,2]
[341639525,1731053452049,-581.58937472,0.00022739,2]
[341639526,1731053452058,-500.0,0.00022739,2]
[341639527,1731053452067,-500.0,0.00022739,2]
[341639528,1731053452075,-500.0,0.00022739,2]
[341639529,1731053452084,-4384.9,0.00022739,2]
[341639530,1731053452093,-1890.740706,0.00022739,7]
[341639531,1731053452102,-500.0,0.00022739,2]
[341639532,1731053452115,-572.138781,0.00022739,7]
[341639533,1731053452124,-1890.740703,0.00022739,7]
[341639534,1731053452132,-644.73,0.00022739,2]
[341639535,1731053452142,-835.35,0.00022739,2]
[341639536,1731053452151,-572.138779,0.00022739,7]
[341639537,1731053452160,-500.0,0.00022739,2]
[341639538,1731053452170,-500.0,0.00022739,2]
[341639539,1731053452179,-500.0,0.00022739,2]
[341639540,1731053452189,-500.0,0.00022739,2]
[341639541,1731053452198,-306.27964553,0.00022739,2]
[341639542,1731053452208,-500.0,0.00022739,2]
[341639543,1731053452218,-4913.87,0.00022739,2]
[341639544,1731053452227,-500.0,0.00022739,2]
[341639545,1731053452236,-500.0,0.00022739,2]
[341639546,1731053452246,-500.0,0.00022739,2]
[341639547,1731053452255,-991.290991,0.00022739,7]
[341639548,1731053452264,-185.205974,0.00022739,7]
[341639549,1731053452273,-500.0,0.00022739,2]
[341639550,1731053452282,-991.290992,0.00022739,7]
[341639551,1731053452291,-203.398043,0.00022739,7]
[341639552,1731053452300,-203.398046,0.00022739,7]
[341639553,1731053452309,-182.51408584,0.00022739,2]
[341639554,1731053452318,-500.0,0.00022739,2]
[341639555,1731053452327,-500.0,0.00022739,2]
[341639556,1731053452336,-531.92,0.00022739,2]
[341639557,1731053452345,-500.0,0.00022739,2]
[341639558,1731053452354,-500.0,0.00022739,2]
[341639559,1731053452364,-500.0,0.00022739,2]
[341639560,1731053452374,-3357.79,0.00022739,2]
[341639561,1731053452383,-166.666666,0.00022944,2]
[341639562,1731053452392,-2019.16079209,0.00023,2]
[341639563,1731053452401,-163.0,0.00023,2]
[341639564,1731053452410,-151.0,0.00023013,7]
[341639565,1731053452420,-500.0,0.00023013,2]
[341639566,1731053452429,-500.0,0.00023013,2]
[341639567,1731053452439,-500.0,0.00023013,2]
[341639568,1731053452448,-500.0,0.00023013,2]
[341639569,1731053452458,-401.68108329,0.00023013,2]
[341639570,1731053452466,-500.0,0.00023013,2]
[341639571,1731053452475,-500.0,0.00023013,2]
[341639572,1731053452484,-500.0,0.00023013,2]
[341639573,1731053452497,-263.2837069,0.00023013,2]
[341639574,1731053452506,-701.41,0.00023013,2]
[341639575,1731053452515,-500.0,0.00023013,2]
[341639576,1731053452525,-500.0,0.00023013,2]
[341639577,1731053452535,-500.0,0.00023013,2]
[341639578,1731053452544,-1564.08,0.00023013,2]
[341639579,1731053452553,-552.92,0.00023013,2]
[341639580,1731053452562,-500.0,0.00023013,2]
[341639581,1731053452572,-500.0,0.00023013,2]
[341639582,1731053452582,-613.7,0.00023013,2]
[341639583,1731053452591,-500.0,0.00023013,2]
[341639584,1731053452600,-783.37,0.00023013,2]
[341639585,1731053452612,-1473.68,0.00023013,2]
[341639586,1731053452626,-500.0,0.00023013,2]
[341639587,1731053452635,-500.0,0.00023013,2]
[341639588,1731053452643,-500.0,0.00023013,2]
[341639589,1731053452652,-500.0,0.00023013,2]
[341639590,1731053452662,-500.0,0.00023013,2]
[341639591,1731053452671,-500.0,0.00023013,2]
[341639592,1731053452680,-500.0,0.00023013,2]
[341639593,1731053452690,-714.86,0.00023013,2]
[341639594,1731053452699,-500.0,0.00023013,2]
[341639595,1731053452708,-500.0,0.00023013,2]
[341639596,1731053452717,-500.0,0.00023013,2]
[341639597,1731053452726,-646.71601174,0.00023013,2]
[341639598,1731053452735,-500.0,0.00023013,2]
[341639599,1731053452744,-500.0,0.00023013,2]
[341639600,1731053452753,-500.0,0.00023013,2]
[341639601,1731053452763,-500.0,0.00023013,2]
[341639602,1731053452772,-500.0,0.00023013,2]
[341639603,1731053452781,-500.0,0.00023013,2]
[341639604,1731053452790,-1329.89,0.00023013,2]
[341639605,1731053452800,-163.53043629,0.00023013,2]
[341639606,1731053452809,-500.0,0.00023013,2]
[341639607,1731053452818,-573.06,0.00023013,2]
[341639608,1731053452828,-500.0,0.00023013,2]
[341639609,1731053452837,-500.0,0.00023013,2]
[341639610,1731053452847,-500.0,0.00023013,2]
[341639611,1731053452859,-500.0,0.00023013,2]
[341639612,1731053452868,-5573.15,0.00023013,2]
[341639613,1731053452877,-1066.59,0.00023013,2]
[341639614,1731053452886,-500.0,0.00023013,2]
[341639615,1731053452896,-500.0,0.00023013,2]
[341639616,1731053452905,-174.73132111,0.00023013,2]
[341639617,1731053452914,-500.0,0.00023013,2]
[341639618,1731053452923,-571.59,0.00023013,2]
[341639619,1731053452933,-500.0,0.00023013,2]
[341639620,1731053452942,-500.0,0.00023013,2]
[341639621,1731053452951,-9530.94,0.00023013,2]
[341639622,1731053452961,-500.0,0.00023013,2]
[341639623,1731053452970,-500.0,0.00023013,2]
[341639624,1731053452979,-500.0,0.00023013,2]
[341639625,1731053452988,-500.0,0.00023013,2]
[341639626,1731053452997,-1022.2,0.00023013,2]
[341639627,1731053453006,-500.0,0.00023013,2]
[341639628,1731053453015,-1090.45,0.00023013,2]
[341639629,1731053453024,-500.0,0.00023013,2]
[341639630,1731053453034,-500.0,0.00023013,2]
[341639631,1731053453043,-500.0,0.00023013,2]
[341639632,1731053453052,-500.0,0.00023013,2]
[341639633,1731053453061,-500.0,0.00023013,2]
[341639634,1731053453070,-500.0,0.00023013,2]
[341639635,1731053453079,-500.0,0.00023013,2]
[341639636,1731053453089,-500.0,0.00023013,2]
[341639637,1731053453098,-774.43,0.00023013,2]
[341639638,1731053453109,-500.0,0.00023013,2]
[341639639,1731053453118,-500.0,0.00023013,2]
[341639640,1731053453127,-411.05155645,0.00023013,2]
[341639641,1731053453136,-500.0,0.00023013,2]
[341639642,1731053453145,-714.27,0.00023013,2]
[341639643,1731053453155,-500.0,0.00023013,2]
[341639644,1731053453164,-500.0,0.00023013,2]
[341639645,1731053453172,-500.0,0.00023013,2]
[341639646,1731053453182,-500.0,0.00023013,2]
[341639647,1731053453190,-500.0,0.00023013,2]
[341639648,1731053453199,-188.14129703,0.00023013,2]
[341639649,1731053453208,-500.0,0.00023013,2]
[341639650,1731053453218,-4384.9,0.00023013,2]
[341639651,1731053453226,-500.0,0.00023013,2]
[341639652,1731053453235,-644.73,0.00023013,2]
[341639653,1731053453244,-835.35,0.00023013,2]
[341639654,1731053453253,-500.0,0.00023013,2]
[341639655,1731053453262,-500.0,0.00023013,2]
[341639656,1731053453271,-500.0,0.00023013,2]
[341639657,1731053453280,-500.0,0.00023013,2]
[341639658,1731053453290,-500.0,0.00023013,2]
[341639659,1731053453299,-4913.87,0.00023013,2]
[341639660,1731053453308,-500.0,0.00023013,2]
[341639661,1731053453318,-500.0,0.00023013,2]
[341639662,1731053453327,-500.0,0.00023013,2]
[341639663,1731053453336,-500.0,0.00023013,2]
[341639664,1731053453345,-500.0,0.00023013,2]
[341639665,1731053453355,-500.0,0.00023013,2]
[341639666,1731053453365,-531.92,0.00023013,2]
[341639667,1731053453374,-500.0,0.00023013,2]
[341639668,1731053453383,-322.36548605,0.00023013,2]
[341639669,1731053453392,-500.0,0.00023013,2]
[341639670,1731053453401,-3357.79,0.00023013,2]
[341639671,1731053453411,-151.0,0.00023287,7]
[341639672,1731053453419,-500.0,0.00023287,2]
[341639673,1731053453428,-500.0,0.00023287,2]
[341639674,1731053453438,-393.60869827,0.00023287,2]
[341639675,1731053453447,-500.0,0.00023287,2]
[341639676,1731053453456,-500.0,0.00023287,2]
[341639677,1731053453465,-500.0,0.00023287,2]
[341639678,1731053453542,-392.67515953,0.00023287,2]
[341639679,1731053453551,-701.41,0.00023287,2]
[341639680,1731053453561,-500.0,0.00023287,2]
[341639681,1731053453571,-500.0,0.00023287,2]
[341639682,1731053453581,-535.79637136,0.00023287,2]
[341639683,1731053453591,-1564.08,0.00023287,2]
[341639684,1731053453600,-552.92,0.00023287,2]
[341639685,1731053453611,-500.0,0.00023287,2]
[341639686,1731053453620,-500.0,0.00023287,2]
[341639687,1731053453630,-613.7,0.00023287,2]
[341639688,1731053453640,-500.0,0.00023287,2]
[341639689,1731053453649,-783.37,0.00023287,2]
[341639690,1731053453659,-1473.68,0.00023287,2]
[341639691,1731053453668,-500.0,0.00023287,2]
[341639692,1731053453677,-500.0,0.00023287,2]
[341639693,1731053453687,-500.0,0.00023287,2]
[341639694,1731053453697,-270.13826624,0.00023287,2]
[341639695,1731053453707,-323.85834511,0.00023287,2]
[341639696,1731053453716,-374.80031547,0.00023287,2]
[341639697,1731053453725,-500.0,0.00023287,2]
[341639698,1731053453735,-714.86,0.00023287,2]
[341639699,1731053453744,-500.0,0.00023287,2]
[341639700,1731053453754,-500.0,0.00023287,2]
[341639701,1731053453764,-500.0,0.00023287,2]
[341639702,1731053453774,-500.0,0.00023287,2]
[341639703,1731053453784,-500.0,0.00023287,2]
[341639704,1731053453793,-565.41547369,0.00023287,2]
[341639705,1731053453803,-500.0,0.00023287,2]
[341639706,1731053453812,-500.0,0.00023287,2]
[341639707,1731053453821,-500.0,0.00023287,2]
[341639708,1731053453830,-1329.89,0.00023287,2]
[341639709,1731053453840,-500.0,0.00023287,2]
[341639710,1731053453849,-573.06,0.00023287,2]
[341639711,1731053453860,-500.0,0.00023287,2]
[341639712,1731053453869,-500.0,0.00023287,2]
[341639713,1731053453878,-500.0,0.00023287,2]
[341639714,1731053453887,-500.0,0.00023287,2]
[341639715,1731053453897,-5573.15,0.00023287,2]
[341639716,1731053453906,-1066.59,0.00023287,2]
[341639717,1731053453915,-500.0,0.00023287,2]
[341639718,1731053453924,-500.0,0.00023287,2]
[341639719,1731053453934,-362.13959531,0.00023287,2]
[341639720,1731053453943,-571.59,0.00023287,2]
[341639721,1731053453952,-500.0,0.00023287,2]
[341639722,1731053453962,-572.14790739,0.00023287,2]
[341639723,1731053453971,-8243.50975466,0.00023287,2]
[341639724,1731053454103,-1287.43024534,0.00023287,2]
[341639725,1731053454114,-500.0,0.00023287,2]
[341639726,1731053454123,-149.99418655,0.00023287,2]
[341639727,1731053454135,-385.13987848,0.00023287,2]
[341639728,1731053454144,-500.0,0.00023287,2]
[341639729,1731053454153,-304.47953404,0.00023287,2]
[341639730,1731053454165,-195.52046596,0.00023287,2]
[341639731,1731053454174,-400.76953404,0.00023287,2]
[341639732,1731053454185,-621.43046596,0.00023287,2]
[341639733,1731053454194,-61.69288608,0.00023287,2]
[341639734,1731053454205,-438.30711392,0.00023287,2]
[341639735,1731053454214,-1090.45,0.00023287,2]
[341639736,1731053454223,-500.0,0.00023287,2]
[341639737,1731053454232,-500.0,0.00023287,2]
[341639738,1731053454241,-574.04535539,0.00023287,2]
[341639739,1731053454251,-5.7272708,0.00023287,2]
[341639740,1731053454262,-469.67999584,0.00023287,2]
[341639741,1731053454273,-24.59273336,0.00023287,2]
[341639742,1731053454282,-500.0,0.00023287,2]
[341639743,1731053454291,-500.0,0.00023287,2]
[341639744,1731053454300,-500.0,0.00023287,2]
[341639745,1731053454310,-500.0,0.00023287,2]
[341639746,1731053454319,-774.43,0.00023287,2]
[341639747,1731053454328,-500.0,0.00023287,2]
[341639748,1731053454337,-500.0,0.00023287,2]
[341639749,1731053454346,-500.0,0.00023287,2]
[341639750,1731053454357,-714.27,0.00023287,2]
[341639751,1731053454366,-500.0,0.00023287,2]
[341639752,1731053454375,-365.98726664,0.00023287,2]
[341639753,1731053454386,-134.01273336,0.00023287,2]
[341639754,1731053454395,-173.05117365,0.00023287,2]
[341639755,1731053454404,-500.0,0.00023287,2]
[341639756,1731053454413,-500.0,0.00023287,2]
[341639757,1731053454422,-500.0,0.00023287,2]
[341639758,1731053454431,-4384.9,0.00023287,2]
[341639759,1731053454440,-500.0,0.00023287,2]
[341639760,1731053454450,-644.73,0.00023287,2]
[341639761,1731053454459,-835.35,0.00023287,2]
[341639762,1731053454470,-500.0,0.00023287,2]
[341639763,1731053454481,-500.0,0.00023287,2]
[341639764,1731053454492,-500.0,0.00023287,2]
[341639765,1731053454503,-500.0,0.00023287,2]
[341639766,1731053454512,-500.0,0.00023287,2]
[341639767,1731053454521,-4913.87,0.00023287,2]
[341639768,1731053454532,-500.0,0.00023287,2]
[341639769,1731053454543,-500.0,0.00023287,2]
[341639770,1731053454554,-170.95434856,0.00023287,2]
[341639771,1731053454563,-500.0,0.00023287,2]
[341639772,1731053454574,-500.0,0.00023287,2]
[341639773,1731053454583,-500.0,0.00023287,2]
[341639774,1731053454592,-531.92,0.00023287,2]
[341639775,1731053454601,-500.0,0.00023287,2]
[341639776,1731053454612,-640.80075689,0.00023287,2]
[341639777,1731053454622,-3357.79,0.00023287,2]
[341639778,1731053454631,-1574.39745972,0.00023294,2]
[341639779,1731053454642,-24143.91544153,0.00023325,2]
[341639780,1731053454651,-1007.47644622,0.00023342,2]
[341639781,1731053454660,-1000.0,0.00023342,2]
[341639782,1731053454670,-1000.0,0.00023342,2]
[341639783,1731053454679,-1000.0,0.00023342,2]
[341639784,1731053454688,-2986.82844616,0.0002345,2]
[341639785,1731053454697,-166.666666,0.00023456,2]
[341639786,1731053454706,-500.0,0.00023473,2]
[341639787,1731053454715,-500.0,0.00023473,2]
[341639788,1731053454724,-150.01,0.00023499,2]
[341639789,1731053454733,-877.93358357,0.00023499,2]
[341639790,1731053454743,-11491.14120695,0.000235,2]
[341639791,1731053454982,-214.252932,0.00021917,2]
[341639792,1731053454992,-214.252932,0.00021917,2]
[341639793,1731053455000,-397.7578341,0.00021917,2]
[341639797,1731054120386,-234.048908,0.00020874,2]
[341639798,1731054120407,-3920.7082361,0.00021054,2]
[341639799,1731054120429,-227.23363815,0.00021807,2]
[341639800,1731054120451,-1186.76758656,0.00021817,2]
[341639801,1731054120473,-830.56,0.00021907,3]
[341639802,1731054120494,-300.0,0.00021915,2]
[341639803,1731054120515,-500.0,0.00021916,2]
[341639804,1731054120537,-500.0,0.00021916,2]
[341639805,1731054120558,-500.0,0.00021916,2]
[341639806,1731054120578,-157.91152016,0.00021916,2]
[341639807,1731054120600,-500.0,0.00021916,2]
[341639808,1731054120622,-600.0,0.00021916,2]
[341639809,1731054120643,-500.0,0.00021916,2]
[341639810,1731054120664,-500.0,0.00021916,2]
[341639811,1731054120687,-500.0,0.00021916,2]
[341639812,1731054120707,-337.68299112,0.00021916,2]
[341639813,1731054120737,-500.0,0.00021916,2]
[341639814,1731054120767,-500.0,0.00021916,2]
[341639815,1731054120791,-216.08711991,0.00021916,2]
[341639816,1731054164245,-949.41406924,0.00021817,2]
[341639817,1731054164267,-1180.79809479,0.00021817,2]
[341639818,1731054164288,-949.41406924,0.00021886,2]
[341639819,1731054164309,-856.72,0.00021907,3]
[341639820,1731054164330,-300.0,0.00021915,2]
[341639821,1731054164352,-300.0,0.00021915,2]
[341639822,1731054164374,-283.91288009,0.00021916,2]
[341639823,1731054164395,-500.0,0.00021916,2]
[341639824,1731054164419,-500.0,0.00021916,2]
[341639825,1731054164439,-500.0,0.00021916,2]
[341639826,1731054164460,-500.0,0.00021916,2]
[341639827,1731054164481,-232.20758179,0.00021916,2]
[341639828,1731054164502,-500.0,0.00021916,2]
[341639829,1731054164522,-500.0,0.00021916,2]
[341639830,1731054164542,-500.0,0.00021916,2]
[341639831,1731054164563,-500.0,0.00021916,2]
[341639832,1731054164585,-500.0,0.00021916,2]
[341639833,1731054164605,-488.69440229,0.00021916,2]
[341639834,1731054164627,-500.0,0.00021916,2]
[341639835,1731054164647,-649.5,0.00021916,2]
[341639836,1731054164671,-500.0,0.00021916,2]
[341639837,1731054164693,-500.0,0.00021916,2]
[341639838,1731054164714,-500.0,0.00021916,2]
[341639839,1731054164734,-500.0,0.00021916,2]
[341639840,1731054164755,-500.0,0.00021916,2]
[341639841,1731054164776,-500.0,0.00021916,2]
[341639842,1731054164796,-500.0,0.00021916,2]
[341639843,1731054164817,-500.0,0.00021916,2]
[341639844,1731054164838,-500.0,0.00021916,2]
[341639845,1731054164859,-500.0,0.00021916,2]